[Event "NY Presidents Day Schiller-C 2024"]
[Site "New York"]
[Date "2024.02.18"]
[Round "6.3"]
[White "Perez Avendano, Paul Omar"]
[Black "Meduri, Aakaash"]
[Result "1-0"]
[ECO "B23"]
[WhiteElo "2213"]
[BlackElo "1956"]
[Annotator "RC"]
[PlyCount "69"]
[EventDate "2024.02.14"]
[EventType "schev"]
[EventCountry "USA"]
[SourceTitle "playchess.com"]
[Source "ChessBase"]
[SourceQuality "1"]
[TimeControl "5400+30"]

1. e4 {[%emt 0:03:49]} c5 {[%emt 0:11:31]} 2. Nc3 {[%emt 0:01:39]} Nc6 {[%emt 0:00:18]} 3. Bb5 {[%emt 0:01:05]} Nd4 {[%emt 0:01:19]} 4. Bc4 {[%emt 0:00:07]} e6 {[%emt 0:01:05]} 5. d3 {[%emt 0:01:25]} a6 {[%emt 0:01:43]} 6. a4 {[%emt 0:00:14]} g6 {[%emt 0:01:57]} 7. Nge2 {[%emt 0:02:12]} Bg7 {[%emt 0:00:42]} 8. O-O {[%emt 0:01:16]} Ne7 {[%emt 0:00:38]} 9. Bg5 {[%emt 0:02:52]} h6 {[%emt 0:03:24]} 10. Bh4 {[%emt 0:01:29]} O-O {[%emt 0:02:11]} 11. f4 {[%emt 0:00:56]} f5 {[%emt 0:12:27]} 12. Kh1 {[%emt 0:10:40]} Qe8 {[%emt 0:08:29]} 13. a5 {[%emt 0:01:11]} Nec6 {[%emt 0:01:20]} 14. Nxd4 {[%emt 0:05:11]} Nxd4 {[%emt 0:03:46]} 15. Na4 {[%emt 0:02:07]} d6 {[%emt 0:00:26]} 16. Nb6 {[%emt 0:01:26]} Rb8 {[%emt 0:00:30]} 17. c3 {[%emt 0:02:57]} Nb5 {[%emt 0:17:12]} 18. exf5 {[%emt 0:05:33]} d5 {[%emt 0:04:55]} 19. fxe6 {[%emt 0:01:29]} dxc4 {[%emt 0:00:55]} 20. e7 {[%emt 0:01:08]} Rf7 {[%emt 0:02:32]} 21. dxc4 {[%emt 0:00:15]} Na7 {[%emt 0:00:41]} 22. Qd6 {[%emt 0:00:50]} Bf5 {[%emt 0:00:48]} 23. Rfe1 {[%emt 0:00:51]} Nc6 {[%emt 0:01:05]} 24. Rad1 {[%emt 0:00:57]} Kh7 {[%emt 0:02:04]} 25. Qxb8 {[%emt 0:04:18]} Qxb8 {[%emt 0:04:33]} 26. e8=Q {[%emt 0:00:31]} Qxe8 {[%emt 0:00:39]} 27. Rxe8 {[%emt 0:00:06]} Bg4 {[%emt 0:00:32]} 28. Rde1 {[%emt 0:03:32]} Rxf4 {[%emt 0:00:21]} 29. Bg3 {[%emt 0:00:07]} Rf7 {[%emt 0:00:37]} 30. Bd6 {[%emt 0:01:55]} Rf2 {[%emt 0:00:33]} 31. h3 {[%emt 0:00:36]} Bf5 {[%emt 0:02:47]} 32. R8e2 {[%emt 0:00:39]} Rxe2 {[%emt 0:01:36]} 33. Rxe2 {[%emt 0:00:07]} Nxa5 {[%emt 0:00:17]} 34. Bxc5 {[%emt 0:03:46]} Nc6 {[%emt 0:00:09]} 35. Bd6 {[%emt 0:00:35]} 1-0

[Event "NY Presidents Day Schiller-C 2024"]
[Site "New York"]
[Date "2024.02.18"]
[Round "6.4"]
[White "Andrianov, Nikolai"]
[Black "Yoo, Eugene"]
[Result "1/2-1/2"]
[ECO "D02"]
[WhiteElo "2266"]
[BlackElo "2168"]
[Annotator "RC"]
[PlyCount "32"]
[EventDate "2024.02.14"]
[EventType "schev"]
[EventCountry "USA"]
[SourceTitle "playchess.com"]
[Source "ChessBase"]
[SourceQuality "1"]
[TimeControl "5400+30"]

1. Nf3 {[%emt 0:00:46]} Nf6 {[%emt 0:00:11]} 2. c4 {[%emt 0:01:24]} e6 {[%emt 0:00:27]} 3. b3 {[%emt 0:01:18]} d5 {[%emt 0:01:53]} 4. Bb2 {[%emt 0:00:11]} Bd6 {[%emt 0:01:38]} 5. g3 {[%emt 0:01:32]} Nbd7 {[%emt 0:05:11]} 6. Bg2 {[%emt 0:01:12]} b6 {[%emt 0:04:54]} 7. O-O {[%emt 0:03:37]} Bb7 {[%emt 0:00:02]} 8. d4 {[%emt 0:05:54]} O-O {[%emt 0:01:47]} 9. Nc3 {[%emt 0:02:32]} a6 {[%emt 0:02:02]} 10. Rc1 {[%emt 0:03:16]} Rc8 {[%emt 0:01:04]} 11. e3 {[%emt 0:07:15]} Re8 {[%emt 0:09:37]} 12. Re1 {[%emt 0:12:30]} Qe7 {[%emt 0:14:14]} 13. Nh4 {[%emt 0:11:04]} g6 {[%emt 0:07:55]} 14. e4 {[%emt 0:01:41]} dxe4 {[%emt 0:07:06]} 15. Nxe4 {[%emt 0:00:19]} Bxe4 {[%emt 0:03:08]} 16. Bxe4 {[%emt 0:00:20]} Nxe4 {[%emt 0:02:20]} 1/2-1/2

[Event "NY Presidents Day Schiller-C 2024"]
[Site "New York"]
[Date "2024.02.18"]
[Round "6.5"]
[White "Plat, Vojtech"]
[Black "Liu, Kelsey"]
[Result "1-0"]
[ECO "B50"]
[WhiteElo "2516"]
[BlackElo "2004"]
[Annotator "TA"]
[PlyCount "79"]
[EventDate "2024.02.14"]
[EventType "schev"]
[EventCountry "USA"]
[SourceTitle "playchess.com"]
[Source "ChessBase"]
[SourceQuality "1"]
[TimeControl "5400+30"]

{[%evp 19,79,33,35,20,21,32,22,26,29,9,35,35,32,47,50,41,94,87,105,120,126,150,159,160,162,143,144,82,116,119,107,70,142,133,115,60,272,287,292,289,431,443,799,778,787,772,716,710,834,815,985,864,1029,1020,1166,1216,1173,1147,4831,5114,4774,1909]} 1. e4 {[%emt 0:15:09]} c5 {[%emt 0:03:32]} 2. Nf3 {[%emt 0:00:05]} d6 {[%emt 0:00:05]} 3. c3 {[%emt 0:00:05]} Nf6 {[%emt 0:01:21]} 4. Be2 {[%emt 0:00:05]} g6 {[%emt 0:02:53]} 5. O-O {[%emt 0:00:07]} Bg7 {[%emt 0:00:04]} 6. Bb5+ {[%emt 0:00:06]} Bd7 {[%emt 0:01:04]} 7. Bxd7+ {[%emt 0:00:05]} Nbxd7 {[%emt 0:01:20]} 8. Re1 {[%emt 0:00:08]} e5 {[%emt 0:00:37]} 9. d4 {[%emt 0:00:27]} O-O {[%emt 0:00:36]} 10. dxe5 {[%emt 0:00:23]} dxe5 {[%emt 0:01:17]} 11. Na3 {[%emt 0:00:12][%cal Bb1a3,Ba3c4,Bc4d6][%mdl 32]} Qc7 {[%emt 0:02:05]} 12. Bg5 {[%emt 0:03:10]} h6 {[%emt 0:01:37]} 13. Bxf6 {[%emt 0:00:23] The position is equal.} Nxf6 {[%emt 0:00:36]} 14. Nc4 {[%emt 0:00:16][%cal Oa2a4]} Rfe8 {[%emt 0:10:54]} 15. Qd6 {[%emt 0:00:43]} Qxd6 {[%emt 0:03:07]} 16. Nxd6 {[%emt 0:00:02]} Re7 {[%emt 0:00:07]} 17. a4 {[%emt 0:00:33][%cal Ba2a4,Ba4a5][%mdl 32]} Ne8 {[%emt 0:13:00]} (17... Re6 $14 18. Nc4 (18. Nxb7 Rb6 $14) 18... b6) 18. Nc4 {[%emt 0:00:38] White has more active pieces.} Rd8 {[%emt 0:00:07] [#]} 19. Rad1 $1 {[%emt 0:00:15]} Rxd1 {[%emt 0:01:19]} 20. Rxd1 {[%emt 0:00:01]} f6 {[%emt 0:00:31]} 21. Rd8 {[%emt 0:01:01] Strongly threatening Nd6.} Kf7 {[%emt 0:00:41]} 22. a5 {[%emt 0:00:18]} h5 {[%emt 0:03:05]} 23. Ne1 {[%emt 0:02:51]} ({Better is} 23. Kf1) 23... Rc7 {[%emt 0:04:51]} 24. Ra8 {[%emt 0:00:48]} a6 {[%emt 0:02:11]} 25. Kf1 {[%emt 0:00:04]} Rd7 {[%emt 0:03:12]} (25... Bf8 $1 $14) 26. Rb8 $36 {[%emt 0:00:39][%mdl 2048] Black must now prevent Nb6. White is on the roll.} Bf8 {[%emt 0:01:51]} 27. Ke2 {[%emt 0:01:59]} (27. Nb6 $16 Rc7 28. Nd5) 27... Ng7 $2 {[%emt 0:07:19] This move loses the game for Black.} (27... Nd6 $14 28. Nb6 Rc7) 28. Nd3 $18 {[%emt 0:00:36]} Rc7 {[%emt 0:00:10]} 29. f4 {[%emt 0:01:29]} Be7 {[%emt 0:17:23]} (29... Ne6 $142 30. fxe5 fxe5 31. Ndxe5+ (31. Ncxe5+ Kg7 $18) 31... Kf6) 30. fxe5 {[%emt 0:00:18] Threatens to win with Nf4. White is clearly winning.} f5 {[%emt 0:00:07]} (30... g5 $142 31. exf6 Bxf6) 31. Nf4 {[%emt 0:01:39]} fxe4 {[%emt 0:04:30] [#]} 32. e6+ $1 {[%emt 0:00:45][%mdl 512]} Nxe6 {[%emt 0:00:06]} 33. Nd5 {[%emt 0:00:03]} g5 {[%emt 0:04:35][%cal Bg6g5,Bg5g4][%mdl 32]} 34. g3 {[%emt 0:00:32]} h4 {[%emt 0:02:16]} 35. Ke3 {[%emt 0:00:17]} hxg3 {[%emt 0:00:10]} 36. hxg3 {[%emt 0:00:00]} (36. Kxe4 g2 (36... gxh2 37. Rh8 $14) 37. Ne5+ Kg7 $19) 36... g4 {[%emt 0:00:36]} 37. Nxc7 {[%emt 0:00:34]} Nxc7 {[%emt 0:00:05]} 38. Rxb7 {[%emt 0:00:04]} Nd5+ {[%emt 0:00:37]} 39. Kxe4 {[%emt 0:00:03]} Ke6 {[%emt 0:00:05]} 40. Ra7 {[%emt 0:00:10] Weighted Error Value: White=0.12 (very precise) /Black=0.41.  Loses game:     	---       	Black=1      Mistake:       	White=2     	Black=4      Inaccurate:     	White=1     	Black=2      OK:         	White=5     	Black=5      Best:        	White=2     	Black=1      Strong:       	White=1     	---} 1-0

[Event "NY Presidents Day Schiller-C 2024"]
[Site "New York"]
[Date "2024.02.18"]
[Round "6.6"]
[White "Martin Del Campo Cardenas, Roberto Abel"]
[Black "Gaw, Chloe"]
[Result "1/2-1/2"]
[ECO "B58"]
[WhiteElo "2205"]
[BlackElo "1928"]
[Annotator "RC"]
[PlyCount "162"]
[EventDate "2024.02.14"]
[EventType "schev"]
[EventCountry "USA"]
[SourceTitle "playchess.com"]
[Source "ChessBase"]
[SourceQuality "1"]
[TimeControl "5400+30"]

1. e4 {[%emt 0:05:54]} c5 {[%emt 0:00:02]} 2. Nf3 {[%emt 0:00:46]} d6 {[%emt 0:00:04]} 3. d4 {[%emt 0:00:14]} cxd4 {[%emt 0:00:04]} 4. Nxd4 {[%emt 0:00:03]} Nf6 {[%emt 0:00:05]} 5. Nc3 {[%emt 0:00:04]} Nc6 {[%emt 0:00:05]} 6. Be2 {[%emt 0:02:03]} e5 {[%emt 0:00:10]} 7. Nf3 {[%emt 0:00:19]} Be7 {[%emt 0:00:21]} 8. Bg5 {[%emt 0:00:39]} O-O {[%emt 0:00:29]} 9. Bxf6 {[%emt 0:01:28]} Bxf6 {[%emt 0:00:08]} 10. Nd5 {[%emt 0:00:23]} Be6 {[%emt 0:00:50]} 11. Bc4 {[%emt 0:04:08]} Rc8 {[%emt 0:03:22]} 12. Bb3 {[%emt 0:00:46]} Ne7 {[%emt 0:09:34]} 13. Nxe7+ {[%emt 0:28:17]} Qxe7 {[%emt 0:03:00]} 14. O-O {[%emt 0:08:47]} Rfd8 {[%emt 0:02:55]} 15. Qd3 {[%emt 0:00:50]} Rc5 {[%emt 0:03:40]} 16. Rfd1 {[%emt 0:12:02]} a6 {[%emt 0:06:59]} 17. Ne1 {[%emt 0:05:08]} g6 {[%emt 0:06:19]} 18. c3 {[%emt 0:02:45]} b5 {[%emt 0:14:23]} 19. Nc2 {[%emt 0:00:50]} Bc4 {[%emt 0:02:05]} 20. Bxc4 {[%emt 0:08:08]} bxc4 {[%emt 0:00:26]} 21. Qe2 {[%emt 0:01:45]} Qb7 {[%emt 0:07:59]} 22. Nb4 {[%emt 0:00:53]} h5 {[%emt 0:08:49]} 23. Rd5 {[%emt 0:02:21]} Rxd5 {[%emt 0:06:45]} 24. Nxd5 {[%emt 0:00:52]} Bg5 {[%emt 0:00:21]} 25. g3 {[%emt 0:00:26]} Rb8 {[%emt 0:02:07]} 26. Rb1 {[%emt 0:01:48]} Qb5 {[%emt 0:03:13]} 27. b4 {[%emt 0:03:02]} cxb3 {[%emt 0:02:41]} 28. Qxb5 {[%emt 0:00:06]} Rxb5 {[%emt 0:01:50]} 29. axb3 {[%emt 0:00:59]} f5 {[%emt 0:02:43]} 30. c4 {[%emt 0:01:01]} Rb7 {[%emt 0:03:49]} 31. exf5 {[%emt 0:01:47]} gxf5 {[%emt 0:00:08]} 32. b4 {[%emt 0:00:12]} Kf7 {[%emt 0:01:35]} 33. Ra1 {[%emt 0:00:09]} Bd2 {[%emt 0:09:59]} 34. Ra4 {[%emt 0:00:41]} Rb8 {[%emt 0:00:00]} 35. Kf1 {[%emt 0:00:25]} Rc8 {[%emt 0:00:00]} 36. Ra2 {[%emt 0:01:59]} Bg5 {[%emt 0:00:00]} 37. h4 {[%emt 0:01:24]} Bh6 {[%emt 0:00:00]} 38. Nb6 {[%emt 0:00:30]} Rc7 {[%emt 0:00:00]} 39. Rxa6 {[%emt 0:00:08]} f4 {[%emt 0:00:00]} 40. Ke2 {[%emt 0:00:54]} fxg3 {[%emt 0:00:00]} 41. fxg3 {[%emt 0:00:02]} Ke6 {[%emt 0:00:00]} 42. c5 {[%emt 0:01:12]} Rc6 {[%emt 0:00:06]} 43. Kd3 {[%emt 0:01:42]} dxc5 {[%emt 0:00:58]} 44. b5 {[%emt 0:00:13]} Rd6+ {[%emt 0:00:42]} 45. Kc4 {[%emt 0:00:01]} Rd4+ {[%emt 0:01:25]} 46. Kxc5 {[%emt 0:00:01]} Bf8+ {[%emt 0:00:28]} 47. Kc6 {[%emt 0:00:01]} e4 {[%emt 0:00:42]} 48. Ra4 {[%emt 0:01:03]} Rxa4 {[%emt 0:01:19]} 49. Nxa4 {[%emt 0:00:01]} Bb4 {[%emt 0:01:06]} 50. b6 {[%emt 0:01:54]} e3 {[%emt 0:00:04]} 51. b7 {[%emt 0:00:09]} e2 {[%emt 0:01:01]} 52. b8=Q {[%emt 0:00:09]} e1=Q {[%emt 0:01:39]} 53. Qe8+ {[%emt 0:00:12]} Kf6 {[%emt 0:00:00]} 54. Qh8+ {[%emt 0:00:48]} Kg6 {[%emt 0:00:00]} 55. Qg8+ {[%emt 0:00:04]} Kf5 {[%emt 0:00:03]} 56. Qg5+ {[%emt 0:00:24]} Ke6 {[%emt 0:00:45]} 57. Qg6+ {[%emt 0:03:04]} Ke7 {[%emt 0:00:14]} 58. Qxh5 {[%emt 0:00:48]} Qxg3 {[%emt 0:01:01]} 59. Nb6 {[%emt 0:00:14]} Qc3+ {[%emt 0:00:43]} 60. Kb5 {[%emt 0:00:07]} Qe1 {[%emt 0:00:40]} 61. Nd5+ {[%emt 0:00:11]} Ke6 {[%emt 0:00:18]} 62. Nxb4 {[%emt 0:00:15]} Qf1+ {[%emt 0:00:28]} 63. Kb6 {[%emt 0:00:50]} Qf2+ {[%emt 0:00:24]} 64. Kb7 {[%emt 0:00:30]} Qg2+ {[%emt 0:00:17]} 65. Nc6 {[%emt 0:00:16]} Qg7+ {[%emt 0:00:29]} 66. Kb6 {[%emt 0:01:55]} Qg1+ {[%emt 0:00:27]} 67. Qc5 {[%emt 0:00:33]} Qb1+ {[%emt 0:00:14]} 68. Kc7 {[%emt 0:00:39]} Qh7+ {[%emt 0:00:16]} 69. Kc8 {[%emt 0:00:26]} Qxh4 {[%emt 0:00:29]} 70. Nd4+ {[%emt 0:00:20]} Kf7 {[%emt 0:00:20]} 71. Qd5+ {[%emt 0:00:11]} Kg6 {[%emt 0:00:51]} 72. Qg8+ {[%emt 0:00:06]} Kh5 {[%emt 0:00:17]} 73. Qf7+ {[%emt 0:00:16]} Kg4 {[%emt 0:00:21]} 74. Qf3+ {[%emt 0:01:23]} Kg5 {[%emt 0:00:04]} 75. Qf5+ {[%emt 0:00:53]} Kh6 {[%emt 0:00:03]} 76. Ne6 {[%emt 0:00:09]} Qc4+ {[%emt 0:01:13]} 77. Nc7 {[%emt 0:00:39]} Qg8+ {[%emt 0:00:22]} 78. Kb7 {[%emt 0:00:05]} Qb3+ {[%emt 0:00:58]} 79. Nb5 {[%emt 0:00:04]} Qb2 {[%emt 0:00:34]} 80. Kc6 {[%emt 0:00:13]} Qg2+ {[%emt 0:00:16]} 81. Kb6 {[%emt 0:00:40]} Qg6+ {[%emt 0:00:06]} 1/2-1/2

[Event "NY Presidents Day Schiller-C 2024"]
[Site "New York"]
[Date "2024.02.18"]
[Round "6.7"]
[White "Mou, Iris"]
[Black "Podavonov, Alisher"]
[Result "1-0"]
[ECO "B13"]
[WhiteElo "2128"]
[BlackElo "2175"]
[Annotator "RC"]
[PlyCount "57"]
[EventDate "2024.02.14"]
[EventType "schev"]
[EventCountry "USA"]
[SourceTitle "playchess.com"]
[Source "ChessBase"]
[SourceQuality "1"]
[TimeControl "5400+30"]

1. e4 {[%emt 0:00:01]} c6 {[%emt 0:20:36]} 2. d4 {[%emt 0:00:19]} d5 {[%emt 0:00:04]} 3. exd5 {[%emt 0:00:09]} cxd5 {[%emt 0:00:07]} 4. Bd3 {[%emt 0:00:06]} Nc6 {[%emt 0:00:03]} 5. c3 {[%emt 0:00:07]} Qc7 {[%emt 0:00:07]} 6. Ne2 {[%emt 0:00:08]} Bg4 {[%emt 0:00:30]} 7. O-O {[%emt 0:00:10]} e6 {[%emt 0:01:20]} 8. Qe1 {[%emt 0:00:10]} Bxe2 {[%emt 0:01:33]} 9. Qxe2 {[%emt 0:00:08]} Bd6 {[%emt 0:00:31]} 10. g3 {[%emt 0:00:08]} Nge7 {[%emt 0:03:57]} 11. Nd2 {[%emt 0:01:38]} h5 {[%emt 0:03:30]} 12. Nf3 {[%emt 0:02:11]} g6 {[%emt 0:05:51]} 13. Bg5 {[%emt 0:04:14]} O-O {[%emt 0:05:13]} 14. Bf6 {[%emt 0:14:04]} Nf5 {[%emt 0:01:27]} 15. Bxf5 {[%emt 0:08:05]} exf5 {[%emt 0:00:06]} 16. Rfe1 {[%emt 0:01:21]} Rfc8 {[%emt 0:03:30]} 17. Qb5 {[%emt 0:13:39]} Be7 {[%emt 0:10:09]} 18. Bxe7 {[%emt 0:02:29]} Nxe7 {[%emt 0:00:07]} 19. Re5 {[%emt 0:02:20]} Rd8 {[%emt 0:07:15]} 20. Rae1 {[%emt 0:04:44]} a6 {[%emt 0:00:16]} 21. Qb3 {[%emt 0:01:29]} Rd7 {[%emt 0:00:33]} 22. Qa3 {[%emt 0:00:34]} Re8 {[%emt 0:02:00]} 23. Kg2 {[%emt 0:10:24]} Kg7 {[%emt 0:05:45]} 24. Ng5 {[%emt 0:07:24]} Kf6 {[%emt 0:00:46]} 25. h4 {[%emt 0:01:53]} Rh8 {[%emt 0:00:33]} 26. Qb3 {[%emt 0:02:34]} Rhd8 {[%emt 0:00:43]} 27. Qd1 {[%emt 0:02:21]} Nc6 {[%emt 0:02:23]} 28. Rxf5+ {[%emt 0:00:36]} Kg7 {[%emt 0:05:08]} 29. Rxf7+ {[%emt 0:00:17]} 1-0

[Event "NY Presidents Day Schiller-C 2024"]
[Site "New York"]
[Date "2024.02.18"]
[Round "6.8"]
[White "Shangin, Lev"]
[Black "Lapshun, Yury"]
[Result "1-0"]
[ECO "E14"]
[WhiteElo "1866"]
[BlackElo "2337"]
[Annotator "TA"]
[PlyCount "91"]
[EventDate "2024.02.14"]
[EventType "schev"]
[EventCountry "USA"]
[SourceTitle "playchess.com"]
[Source "ChessBase"]
[SourceQuality "1"]
[TimeControl "5400+30"]

{[%evp 21,91,49,42,43,44,48,40,34,90,31,35,37,40,0,24,-21,-11,-11,-10,-13,46,35,38,45,56,17,23,10,12,0,0,0,130,132,119,138,116,133,116,115,136,131,120,136,332,330,332,334,316,326,399,399,399,399,375,346,567,562,533,527,925,912,1090,1052,6387,1590,1848,1568,1362,1362,2008,1754]} 1. d4 {[%emt 0:00:05]} Nf6 {[%emt 0:37:46]} 2. c4 {[%emt 0:00:44]} e6 {[%emt 0:00:04]} 3. Nf3 {[%emt 0:00:48]} Bb4+ {[%emt 0:00:04]} 4. Nbd2 {[%emt 0:00:49]} O-O {[%emt 0:00:35]} 5. a3 {[%emt 0:00:40]} Bxd2+ {[%emt 0:00:04]} 6. Qxd2 {[%emt 0:00:36]} b6 {[%emt 0:00:20]} 7. e3 {[%emt 0:01:31]} Bb7 {[%emt 0:00:04]} 8. Be2 {[%emt 0:00:43]} d6 {[%emt 0:00:15]} 9. b4 {[%emt 0:01:18]} Nbd7 {[%emt 0:00:15]} 10. O-O {[%emt 0:01:31]} Ne4 {[%emt 0:02:01]} 11. Qc2 {[%emt 0:00:31]} f5 {[%emt 0:00:04] [#]} 12. d5 $1 {[%emt 0:01:35]} e5 {[%emt 0:02:43] Prevents Nd4.} 13. Nd2 {[%emt 0:01:56]} Nxd2 {[%emt 0:01:31]} 14. Bxd2 {[%emt 0:00:53] White is slightly better.} b5 {[%emt 0:04:20]} 15. Rad1 {[%emt 0:05:39] White is more active.} (15. cxb5 $16 Bxd5 16. Bd3) 15... bxc4 $14 {[%emt 0:00:27]} 16. Bxc4 {[%emt 0:00:10]} Nb6 {[%emt 0:01:39][%cal Od8d7]} 17. Bc1 {[%emt 0:02:21]} a5 {[%emt 0:00:33]} 18. f4 {[%emt 0:04:05]} axb4 {[%emt 0:01:31]} 19. axb4 {[%emt 0:01:23]} Nxc4 {[%emt 0:00:32]} 20. Qxc4 {[%emt 0:00:20]} e4 {[%emt 0:01:42]} ({Black should try} 20... Qe7 $11) 21. Bb2 {[%emt 0:01:11]} Qd7 {[%emt 0:05:33] Black is weak on the dark squares} 22. Rc1 {[%emt 0:03:19]} Rfc8 {[%emt 0:01:56] And now ...Ba6 would win.} 23. Qd4 {[%emt 0:02:26]} Ba6 {[%emt 0:03:21]} 24. Rfe1 {[%emt 0:02:08]} Qf7 {[%emt 0:01:00]} 25. Rc2 {[%emt 0:04:41][%cal Og2g4]} Bd3 {[%emt 0:03:44]} 26. Rc6 {[%emt 0:03:17]} Rcb8 {[%emt 0:00:36]} (26... Bb5 $11 {remains equal.} 27. Rcc1 Ba4) 27. Rec1 $16 {[%emt 0:01:03]} Rb7 {[%emt 0:00:13]} 28. Qc3 $1 {[%emt 0:04:28]} Raa7 {[%emt 0:05:01][%cal Od3b5] [#] Hoping for ...Bb5!} 29. Rxd6 $3 {[%emt 0:07:16][%mdl 512]} cxd6 {[%emt 0:13:47]} 30. Qc8+ {[%emt 0:00:11]} Qf8 {[%emt 0:00:12] [#]} 31. Qe6+ {[%emt 0:00:08]} Rf7 {[%emt 0:00:04]} 32. Rc8 {[%emt 0:00:04] Prevents Ra8.} Ra8 $2 {[%emt 0:00:04] A mistake that costs the game.} (32... Rad7 $16 33. Rxf8+ Kxf8) 33. Rxf8+ $18 {[%emt 0:00:11]} Raxf8 {[%emt 0:00:07]} 34. Qxd6 {[%emt 0:00:11]} Bb5 {[%emt 0:05:40] Inhibits Qc6.} 35. Qb6 {[%emt 0:02:51]} Bd7 {[%emt 0:00:38]} 36. Bd4 {[%emt 0:01:04]} h6 {[%emt 0:01:49]} 37. h3 {[%emt 0:02:05][%cal Bh2h3,Bh3h4][%mdl 32]} Kh7 {[%emt 0:00:06]} 38. Kh2 {[%emt 0:00:23]} g5 $2 {[%emt 0:03:39]} (38... Bc8 {is a better defense.} 39. b5 Rg8) 39. Be5 {[%emt 0:02:41] White is clearly winning.} Rg8 {[%emt 0:01:56]} 40. b5 {[%emt 0:07:56][%cal Bb4b5,Bb5b6,Bb6b7][%mdl 32]} g4 {[%emt 0:00:04][%cal Bg5g4,Bg4g3][%mdl 32]} 41. h4 {[%emt 0:01:58]} g3+ {[%emt 0:01:43]} 42. Kh3 {[%emt 0:00:29]} Rg6 {[%emt 0:00:48]} 43. Qc5 {[%emt 0:00:26]} (43. Qa7 $142 Be8 44. Qa8) 43... Rg8 {[%emt 0:00:29]} 44. b6 {[%emt 0:02:03] Intending b7 and mate.} Bc8 {[%emt 0:00:24]} 45. Qc6 {[%emt 0:01:15]} Bd7 {[%emt 0:02:16] [#]} 46. b7 $1 {[%emt 0:32:07] Weighted Error Value: White=0.09 (flawless) /Black=0.36.  Loses game:     	---       	Black=1      Mistake:       	White=1     	Black=4      Inaccurate:     	White=3     	Black=1      OK:         	White=13    	Black=11     Best:        	White=2     	Black=2      Strong:       	White=1     	---        Brilliant:      	White=1     	---} 1-0

[Event "NY Presidents Day Schiller-C 2024"]
[Site "New York"]
[Date "2024.02.18"]
[Round "6.9"]
[White "Pagan, Jonathan"]
[Black "Campos Jimenez, Augusto Cesar"]
[Result "1/2-1/2"]
[ECO "D27"]
[WhiteElo "2018"]
[BlackElo "2288"]
[Annotator "TA"]
[PlyCount "34"]
[EventDate "2024.02.14"]
[EventType "schev"]
[EventCountry "USA"]
[SourceTitle "playchess.com"]
[Source "ChessBase"]
[SourceQuality "1"]
[TimeControl "5400+30"]

{[%evp 18,34,44,18,31,21,30,37,27,25,27,31,40,0,0,0,0,0,0]} 1. d4 {[%emt 0:00:03]} d5 {[%emt 0:10:15]} 2. c4 {[%emt 0:00:07]} dxc4 {[%emt 0:00:59]} 3. e3 {[%emt 0:00:05]} Nf6 {[%emt 0:00:06]} 4. Bxc4 {[%emt 0:00:05]} e6 {[%emt 0:00:03]} 5. Nf3 {[%emt 0:00:05]} a6 {[%emt 0:00:07]} 6. O-O {[%emt 0:00:08]} c5 {[%emt 0:00:10]} 7. b3 {[%emt 0:00:07]} Nc6 {[%emt 0:02:11]} 8. Bb2 {[%emt 0:00:14]} cxd4 {[%emt 0:04:34]} 9. Nxd4 {[%emt 0:00:25]} Bd7 {[%emt 0:00:03]} 10. Nd2 {[%emt 0:01:36]} Be7 {[%emt 0:00:20]} 11. Be2 {[%emt 0:03:10]} Rc8 {[%emt 0:05:51]} 12. Rc1 {[%emt 0:07:57]} Nxd4 {[%emt 0:02:31] Weiß steht etwas besser.} 13. Bxd4 {[%emt 0:00:08]} Bc6 {[%emt 0:06:15]} 14. Bf3 {[%emt 0:06:03]} Bxf3 {[%emt 0:18:00]} 15. Nxf3 {[%emt 0:00:22]} O-O {[%emt 0:00:25] Die Stellung ist ausgeglichen.} 16. Rxc8 {[%emt 0:00:34]} Qxc8 {[%emt 0:00:06]} 17. Qb1 {[%emt 0:00:37]} Qd7 {[%emt 0:06:37] Gewichteter Fehlerwert: Weiß=0.13 (sehr präzise) /Schwarz=0.04 (makellos) .  Ungenau:       	Weiß=1     	---        OK:         	Weiß=1     	Schwarz=4} 1/2-1/2